[Event "*** SCC Grand Prix: Titled Tuesday Blitz"]
[Site "Chess.com"]
[Date "2020.09.08"]
[Round "5"]
[White "vinniethepooh"]
[Black "daro94"]
[Result "0-1"]
[WhiteElo "2653"]
[BlackElo "2961"]
[TimeControl "180+1"]
[EndTime "10:53:11 PDT"]
[Termination "daro94 won by resignation"]

1. d4 {[%clk 0:03:00.9]} 1... d6 {[%clk 0:02:51.9]} 2. c4 {[%clk 0:02:59.9]}
2... e5 {[%clk 0:02:51.9]} 3. Nc3 {[%clk 0:03:00.2]} 3... exd4 {[%clk 0:02:45]}
4. Qxd4 {[%clk 0:03:01.1]} 4... Nc6 {[%clk 0:02:45.6]} 5. Qd2 {[%clk 0:03:01.1]}
5... Nf6 {[%clk 0:02:46.2]} 6. g3 {[%clk 0:02:55.1]} 6... Be6 {[%clk 0:02:35]}
7. e3 {[%clk 0:02:48]} 7... d5 {[%clk 0:02:34.4]} 8. cxd5 {[%clk 0:02:36.3]}
8... Nxd5 {[%clk 0:02:32.6]} 9. Nge2 {[%clk 0:02:32.8]} 9... Ndb4 {[%clk
0:02:19.1]} 10. Nf4 {[%clk 0:01:55.3]} 10... Qxd2+ {[%clk 0:02:13.4]} 11. Kxd2
{[%clk 0:01:56.2]} 11... Bg4 {[%clk 0:01:58.8]} 12. Nb5 {[%clk 0:01:21.1]} 12...
O-O-O+ {[%clk 0:01:56.1]} 13. Kc3 {[%clk 0:01:19]} 13... g5 {[%clk 0:01:56.2]}
14. Bh3 {[%clk 0:01:12.7]} 14... Bxh3 {[%clk 0:01:40.6]} 15. Nxh3 {[%clk
0:01:10.5]} 15... Rd3+ {[%clk 0:01:40.5]} 0-1

[Event "*** SCC Grand Prix: Titled Tuesday Blitz"]
[Site "Chess.com"]
[Date "2020.09.08"]
[Round "5"]
[White "Kazmin_Dmitrij"]
[Black "aljado"]
[Result "1-0"]
[WhiteElo "2285"]
[BlackElo "2099"]
[TimeControl "180+1"]
[EndTime "10:53:12 PDT"]
[Termination "Kazmin_Dmitrij won by resignation"]

1. e4 {[%clk 0:03:00.9]} 1... c5 {[%clk 0:02:58.6]} 2. Nf3 {[%clk 0:02:59.2]}
2... e6 {[%clk 0:02:58.5]} 3. d4 {[%clk 0:02:56]} 3... cxd4 {[%clk 0:02:58.5]}
4. Nxd4 {[%clk 0:02:55.5]} 4... Bc5 {[%clk 0:02:59]} 5. Nb3 {[%clk 0:02:46.3]}
5... Bb6 {[%clk 0:02:58.7]} 6. c4 {[%clk 0:02:41.4]} 6... Ne7 {[%clk 0:02:55.7]}
7. c5 {[%clk 0:02:38.7]} 7... Bc7 {[%clk 0:02:54.2]} 8. Nc3 {[%clk 0:02:33.7]}
8... b6 {[%clk 0:02:53.7]} 9. Nb5 {[%clk 0:02:27.4]} 9... bxc5 {[%clk
0:02:52.7]} 10. Nxc7+ {[%clk 0:02:17.2]} 10... Qxc7 {[%clk 0:02:52]} 11. Qg4
{[%clk 0:02:12.8]} 11... O-O {[%clk 0:02:48.6]} 12. Be3 {[%clk 0:01:56.8]} 12...
c4 {[%clk 0:02:38.3]} 13. Rc1 {[%clk 0:01:51.9]} 13... d5 {[%clk 0:02:35.5]} 14.
Qg3 {[%clk 0:01:35.2]} 14... Qxg3 {[%clk 0:02:34]} 15. hxg3 {[%clk 0:01:35.2]}
15... Nbc6 {[%clk 0:02:34.3]} 16. Nc5 {[%clk 0:01:31]} 16... Rb8 {[%clk
0:02:14.1]} 17. b3 {[%clk 0:01:26.1]} 17... cxb3 {[%clk 0:02:12.6]} 18. axb3
{[%clk 0:01:26.2]} 18... d4 {[%clk 0:02:09.3]} 19. Bd2 {[%clk 0:01:22.8]} 19...
e5 {[%clk 0:02:08.2]} 20. Bc4 {[%clk 0:01:15.7]} 20... Na5 {[%clk 0:02:06.2]}
21. Bxa5 {[%clk 0:01:14]} 21... Nf5 {[%clk 0:01:56.9]} 22. exf5 {[%clk
0:01:11.5]} 1-0

[Event "*** SCC Grand Prix: Titled Tuesday Blitz"]
[Site "Chess.com"]
[Date "2020.09.08"]
[Round "5"]
[White "GadimbayliA"]
[Black "Sven_Tica"]
[Result "1-0"]
[WhiteElo "2897"]
[BlackElo "2702"]
[TimeControl "180+1"]
[EndTime "10:53:42 PDT"]
[Termination "GadimbayliA won by checkmate"]

1. e4 {[%clk 0:03:00.9]} 1... c5 {[%clk 0:03:00.2]} 2. Nf3 {[%clk 0:03:00.3]}
2... Nf6 {[%clk 0:03:00.8]} 3. e5 {[%clk 0:03:00.1]} 3... Nd5 {[%clk 0:03:01.5]}
4. Nc3 {[%clk 0:03:00.7]} 4... e6 {[%clk 0:03:02.2]} 5. Nxd5 {[%clk 0:03:00.6]}
5... exd5 {[%clk 0:03:03.1]} 6. d4 {[%clk 0:03:01.4]} 6... Nc6 {[%clk
0:03:03.8]} 7. dxc5 {[%clk 0:03:01.9]} 7... Bxc5 {[%clk 0:03:04.7]} 8. Qxd5
{[%clk 0:03:02.2]} 8... Qb6 {[%clk 0:03:05.4]} 9. Bc4 {[%clk 0:03:02.1]} 9...
Bxf2+ {[%clk 0:03:05.9]} 10. Ke2 {[%clk 0:03:01.2]} 10... O-O {[%clk 0:03:06.5]}
11. Rf1 {[%clk 0:03:01.2]} 11... Bc5 {[%clk 0:03:07]} 12. Ng5 {[%clk 0:02:59.4]}
12... Nd4+ {[%clk 0:03:07.7]} 13. Kd1 {[%clk 0:02:59.9]} 13... Ne6 {[%clk
0:03:08.4]} 14. Ne4 {[%clk 0:02:36.5]} 14... d6 {[%clk 0:03:08.9]} 15. exd6
{[%clk 0:02:26.8]} 15... Rd8 {[%clk 0:03:09.4]} 16. Bd3 {[%clk 0:02:25.9]} 16...
Bxd6 {[%clk 0:02:52.2]} 17. Qh5 {[%clk 0:02:24.3]} 17... Qd4 {[%clk 0:01:53.5]}
18. Nxd6 {[%clk 0:02:18.8]} 18... Qxd6 {[%clk 0:01:49.1]} 19. Qxh7+ {[%clk
0:02:06.1]} 19... Kf8 {[%clk 0:01:49.1]} 20. Qh5 {[%clk 0:02:00.9]} 20... Qc7
{[%clk 0:01:33.2]} 21. Be3 {[%clk 0:01:56.1]} 21... a6 {[%clk 0:01:01.5]} 22. a4
{[%clk 0:01:55]} 22... b6 {[%clk 0:00:58.9]} 23. Ra3 {[%clk 0:01:54.3]} 23...
Bb7 {[%clk 0:00:57.5]} 24. Rc3 {[%clk 0:01:53.8]} 24... Qe7 {[%clk 0:00:57.8]}
25. Qh8# {[%clk 0:01:42.4]} 1-0

[Event "*** SCC Grand Prix: Titled Tuesday Blitz"]
[Site "Chess.com"]
[Date "2020.09.08"]
[Round "5"]
[White "hellokostya"]
[Black "Xeslu"]
[Result "0-1"]
[WhiteElo "2478"]
[BlackElo "2328"]
[TimeControl "180+1"]
[EndTime "10:53:49 PDT"]
[Termination "Xeslu won by resignation"]

1. d4 {[%clk 0:03:00.9]} 1... d5 {[%clk 0:02:58.4]} 2. c4 {[%clk 0:02:56.1]}
2... c6 {[%clk 0:02:58.7]} 3. Nf3 {[%clk 0:02:55.2]} 3... Nf6 {[%clk 0:02:57.6]}
4. e3 {[%clk 0:02:54.7]} 4... e6 {[%clk 0:02:57.2]} 5. Bd3 {[%clk 0:02:53.8]}
5... Nbd7 {[%clk 0:02:55.1]} 6. b3 {[%clk 0:02:53.2]} 6... b6 {[%clk 0:02:55.4]}
7. Bb2 {[%clk 0:02:53.1]} 7... Bd6 {[%clk 0:02:55.5]} 8. Nc3 {[%clk 0:02:51.8]}
8... Bb7 {[%clk 0:02:55.4]} 9. Qc2 {[%clk 0:02:51.7]} 9... Qe7 {[%clk
0:02:54.2]} 10. O-O {[%clk 0:02:50.6]} 10... Ba3 {[%clk 0:02:53.7]} 11. Rfe1
{[%clk 0:02:42]} 11... Bxb2 {[%clk 0:02:53.7]} 12. Qxb2 {[%clk 0:02:41.6]} 12...
O-O {[%clk 0:02:53.3]} 13. Qc2 {[%clk 0:02:36.2]} 13... h6 {[%clk 0:02:44.2]}
14. e4 {[%clk 0:02:33.1]} 14... dxe4 {[%clk 0:02:43.7]} 15. Nxe4 {[%clk
0:02:32.3]} 15... Nxe4 {[%clk 0:02:43.7]} 16. Bxe4 {[%clk 0:02:32.2]} 16... Nf6
{[%clk 0:02:43]} 17. c5 {[%clk 0:02:08.4]} 17... Rfd8 {[%clk 0:02:34.4]} 18.
Rad1 {[%clk 0:01:56.7]} 18... bxc5 {[%clk 0:02:16.7]} 19. dxc5 {[%clk
0:01:38.9]} 19... Rxd1 {[%clk 0:02:13.6]} 20. Rxd1 {[%clk 0:01:37.1]} 20... Rd8
{[%clk 0:02:11.7]} 21. Rxd8+ {[%clk 0:01:26.8]} 21... Qxd8 {[%clk 0:02:11.4]}
22. h3 {[%clk 0:01:09.5]} 22... Qa5 {[%clk 0:02:05.9]} 23. Bd3 {[%clk
0:01:05.4]} 23... Nd5 {[%clk 0:02:01.8]} 24. Ne5 {[%clk 0:00:43.9]} 24... Qe1+
{[%clk 0:02:00]} 25. Kh2 {[%clk 0:00:42.8]} 25... Qxe5+ {[%clk 0:01:59.8]} 0-1

[Event "*** SCC Grand Prix: Titled Tuesday Blitz"]
[Site "Chess.com"]
[Date "2020.09.08"]
[Round "5"]
[White "AniJak"]
[Black "Violord"]
[Result "0-1"]
[WhiteElo "2366"]
[BlackElo "2681"]
[TimeControl "180+1"]
[EndTime "10:53:50 PDT"]
[Termination "Violord won by resignation"]

1. e4 {[%clk 0:03:00.9]} 1... g6 {[%clk 0:02:55.2]} 2. d4 {[%clk 0:03:00.4]}
2... Bg7 {[%clk 0:02:55.2]} 3. Nc3 {[%clk 0:03:00.9]} 3... c6 {[%clk 0:02:54.8]}
4. g3 {[%clk 0:03:00.4]} 4... d5 {[%clk 0:02:54.3]} 5. Nge2 {[%clk 0:02:57.4]}
5... Bg4 {[%clk 0:02:52.2]} 6. exd5 {[%clk 0:02:53]} 6... Bf3 {[%clk 0:02:51.3]}
7. Rg1 {[%clk 0:02:49.2]} 7... cxd5 {[%clk 0:02:51.1]} 8. Be3 {[%clk 0:02:44.6]}
8... Nc6 {[%clk 0:02:49.9]} 9. Qd2 {[%clk 0:02:44.1]} 9... Nf6 {[%clk
0:02:47.8]} 10. Nf4 {[%clk 0:02:43]} 10... O-O {[%clk 0:02:44.9]} 11. Be2 {[%clk
0:02:42.6]} 11... Bxe2 {[%clk 0:02:43.4]} 12. Nfxe2 {[%clk 0:02:41.1]} 12... b5
{[%clk 0:02:37.2]} 13. g4 {[%clk 0:02:38.8]} 13... b4 {[%clk 0:02:36.4]} 14. Na4
{[%clk 0:02:34.3]} 14... Ne4 {[%clk 0:02:36.4]} 15. Qd1 {[%clk 0:02:34.2]} 15...
Qa5 {[%clk 0:02:35.9]} 16. b3 {[%clk 0:02:33.9]} 16... Rac8 {[%clk 0:02:30.7]}
17. f3 {[%clk 0:02:32.6]} 17... Nd6 {[%clk 0:02:28.8]} 18. Nc5 {[%clk
0:02:27.3]} 18... Nb5 {[%clk 0:02:28.3]} 19. Na4 {[%clk 0:02:08.8]} 19... Rfd8
{[%clk 0:02:25.5]} 20. Kf2 {[%clk 0:02:08.7]} 20... e5 {[%clk 0:02:22.1]} 21.
dxe5 {[%clk 0:02:05.1]} 21... Nxe5 {[%clk 0:02:21.5]} 22. Nd4 {[%clk 0:01:50.2]}
22... Nxd4 {[%clk 0:02:11]} 23. Bxd4 {[%clk 0:01:51.1]} 23... Qc7 {[%clk
0:02:10.1]} 24. Rc1 {[%clk 0:01:50.7]} 24... Qe7 {[%clk 0:01:54.5]} 25. Qe1
{[%clk 0:01:42.1]} 25... Qh4+ {[%clk 0:01:44.3]} 26. Kg2 {[%clk 0:01:26]} 26...
Nxf3 {[%clk 0:01:31]} 27. Qxh4 {[%clk 0:01:26.1]} 27... Nxh4+ {[%clk 0:01:30.4]}
28. Kg3 {[%clk 0:01:24.1]} 28... Bxd4 {[%clk 0:01:30]} 29. Rgd1 {[%clk
0:01:18.7]} 29... Bf6 {[%clk 0:01:27.8]} 0-1

[Event "*** SCC Grand Prix: Titled Tuesday Blitz"]
[Site "Chess.com"]
[Date "2020.09.08"]
[Round "5"]
[White "KubaGepard"]
[Black "Meri-Arabidze"]
[Result "0-1"]
[WhiteElo "2388"]
[BlackElo "2565"]
[TimeControl "180+1"]
[EndTime "10:53:56 PDT"]
[Termination "Meri-Arabidze won by resignation"]

1. d4 {[%clk 0:03:00.9]} 1... d5 {[%clk 0:02:59.5]} 2. c4 {[%clk 0:03:00.1]}
2... e6 {[%clk 0:02:59.8]} 3. Nf3 {[%clk 0:02:57.7]} 3... Nf6 {[%clk 0:03:00]}
4. g3 {[%clk 0:02:56.2]} 4... Bb4+ {[%clk 0:02:59]} 5. Bd2 {[%clk 0:02:55.9]}
5... Be7 {[%clk 0:02:59.6]} 6. Bg2 {[%clk 0:02:55.8]} 6... O-O {[%clk
0:03:00.3]} 7. O-O {[%clk 0:02:55.6]} 7... Nbd7 {[%clk 0:03:00.9]} 8. Qc2 {[%clk
0:02:55.3]} 8... Ne4 {[%clk 0:02:59.5]} 9. Bc1 {[%clk 0:02:54.3]} 9... c6 {[%clk
0:02:58.2]} 10. Nc3 {[%clk 0:02:53.2]} 10... f5 {[%clk 0:02:58.3]} 11. Nd2
{[%clk 0:02:53.1]} 11... Ndf6 {[%clk 0:02:52.8]} 12. Ncxe4 {[%clk 0:02:50.8]}
12... dxe4 {[%clk 0:02:46.5]} 13. e3 {[%clk 0:02:48]} 13... c5 {[%clk
0:02:45.4]} 14. Nb3 {[%clk 0:02:45.3]} 14... cxd4 {[%clk 0:02:42.5]} 15. exd4
{[%clk 0:02:46.2]} 15... b6 {[%clk 0:02:37.2]} 16. a4 {[%clk 0:02:40.1]} 16...
a5 {[%clk 0:02:35.1]} 17. f3 {[%clk 0:02:38.5]} 17... Bb7 {[%clk 0:02:35.2]} 18.
Bf4 {[%clk 0:02:35.8]} 18... exf3 {[%clk 0:02:31.9]} 19. Bxf3 {[%clk 0:02:36.7]}
19... Bxf3 {[%clk 0:02:32.2]} 20. Rxf3 {[%clk 0:02:35.9]} 20... Ne4 {[%clk
0:02:32.9]} 21. Re1 {[%clk 0:02:29.5]} 21... Bg5 {[%clk 0:02:30.1]} 22. Bxg5
{[%clk 0:02:10.3]} 22... Qxg5 {[%clk 0:02:31]} 23. Rf4 {[%clk 0:02:08.5]} 23...
Nxg3 {[%clk 0:02:22.2]} 24. Rf2 {[%clk 0:01:44.2]} 24... Ne4+ {[%clk 0:02:05.1]}
25. Rg2 {[%clk 0:01:43.9]} 25... Qh4 {[%clk 0:02:04.7]} 26. Re3 {[%clk
0:01:39.7]} 26... Rac8 {[%clk 0:02:02.2]} 27. Qd3 {[%clk 0:01:34.4]} 27... Rf7
{[%clk 0:01:59.2]} 28. Nc1 {[%clk 0:01:29.7]} 28... Rd8 {[%clk 0:01:54.4]} 29.
b3 {[%clk 0:01:20.8]} 29... Rfd7 {[%clk 0:01:54.2]} 30. d5 {[%clk 0:01:19.8]}
30... exd5 {[%clk 0:01:50.7]} 31. Qd4 {[%clk 0:01:19.3]} 31... dxc4 {[%clk
0:01:45.3]} 32. Qxc4+ {[%clk 0:01:19.1]} 32... Kh8 {[%clk 0:01:44.4]} 33. Nd3
{[%clk 0:01:15.1]} 33... Rxd3 {[%clk 0:01:41.5]} 0-1

[Event "*** SCC Grand Prix: Titled Tuesday Blitz"]
[Site "Chess.com"]
[Date "2020.09.08"]
[Round "5"]
[White "ErikRonka"]
[Black "MFguimaraes"]
[Result "0-1"]
[WhiteElo "2243"]
[BlackElo "2409"]
[TimeControl "180+1"]
[EndTime "10:53:57 PDT"]
[Termination "MFguimaraes won by resignation"]

1. e4 {[%clk 0:03:00.9]} 1... e5 {[%clk 0:02:59]} 2. Nf3 {[%clk 0:02:59.4]} 2...
Nc6 {[%clk 0:02:58.7]} 3. Bb5 {[%clk 0:02:59.2]} 3... Nf6 {[%clk 0:02:58.5]} 4.
O-O {[%clk 0:02:57.9]} 4... Bc5 {[%clk 0:02:56.7]} 5. c3 {[%clk 0:02:45.4]} 5...
O-O {[%clk 0:02:54.1]} 6. d4 {[%clk 0:02:44.9]} 6... Bb6 {[%clk 0:02:52.9]} 7.
Bg5 {[%clk 0:02:33.5]} 7... h6 {[%clk 0:02:51.9]} 8. Bh4 {[%clk 0:02:33.2]} 8...
d6 {[%clk 0:02:49.3]} 9. Bxc6 {[%clk 0:02:28.3]} 9... bxc6 {[%clk 0:02:48.6]}
10. dxe5 {[%clk 0:02:28.8]} 10... dxe5 {[%clk 0:02:48.3]} 11. Qxd8 {[%clk
0:02:29.7]} 11... Rxd8 {[%clk 0:02:48.2]} 12. Nbd2 {[%clk 0:02:04.8]} 12... g5
{[%clk 0:02:42.8]} 13. Bg3 {[%clk 0:02:04.5]} 13... g4 {[%clk 0:02:43.1]} 14.
Bxe5 {[%clk 0:01:37.1]} 14... gxf3 {[%clk 0:02:40.6]} 15. Nxf3 {[%clk 0:01:38]}
15... Nxe4 {[%clk 0:02:36.6]} 16. Bd4 {[%clk 0:01:33.7]} 16... Bg4 {[%clk
0:02:32.3]} 17. Ne5 {[%clk 0:01:22.8]} 17... Bxd4 {[%clk 0:02:29.6]} 18. Nxg4
{[%clk 0:01:18.2]} 18... Bg7 {[%clk 0:02:26.2]} 19. Rfe1 {[%clk 0:01:18.1]}
19... Nf6 {[%clk 0:02:17]} 20. Ne5 {[%clk 0:01:15.9]} 20... Rd6 {[%clk
0:02:14.1]} 21. Nc4 {[%clk 0:01:14.7]} 21... Re6 {[%clk 0:02:13.9]} 22. Rxe6
{[%clk 0:01:12.6]} 22... fxe6 {[%clk 0:02:14.8]} 23. Ne5 {[%clk 0:01:13.2]}
23... Rb8 {[%clk 0:02:05.1]} 24. b3 {[%clk 0:01:04.8]} 24... Nd5 {[%clk
0:02:04.6]} 25. Nxc6 {[%clk 0:01:03.9]} 25... Rb6 {[%clk 0:02:03.3]} 26. Nxa7
{[%clk 0:00:59]} 26... Nxc3 {[%clk 0:01:59.3]} 27. Rf1 {[%clk 0:00:50.3]} 27...
Ra6 {[%clk 0:01:49.3]} 28. Nc8 {[%clk 0:00:49]} 28... Kf7 {[%clk 0:01:48.9]} 0-1

[Event "*** SCC Grand Prix: Titled Tuesday Blitz"]
[Site "Chess.com"]
[Date "2020.09.08"]
[Round "5"]
[White "GasconJR"]
[Black "Rud_Makarian"]
[Result "1-0"]
[WhiteElo "2574"]
[BlackElo "2751"]
[TimeControl "180+1"]
[EndTime "10:54:27 PDT"]
[Termination "GasconJR won by checkmate"]

1. d4 {[%clk 0:03:00.9]} 1... e6 {[%clk 0:03:00.2]} 2. Bf4 {[%clk 0:02:59.5]}
2... Bd6 {[%clk 0:03:00]} 3. Bxd6 {[%clk 0:02:53.2]} 3... cxd6 {[%clk
0:03:00.8]} 4. e4 {[%clk 0:02:53.5]} 4... Nf6 {[%clk 0:02:59.2]} 5. Nc3 {[%clk
0:02:45.4]} 5... Qb6 {[%clk 0:02:56.8]} 6. a3 {[%clk 0:02:39.1]} 6... Nc6 {[%clk
0:02:53.5]} 7. Nf3 {[%clk 0:02:38.6]} 7... O-O {[%clk 0:02:44.3]} 8. Be2 {[%clk
0:02:34.5]} 8... d5 {[%clk 0:02:37]} 9. exd5 {[%clk 0:02:33.1]} 9... Nxd5 {[%clk
0:02:36.8]} 10. Nxd5 {[%clk 0:02:32.1]} 10... exd5 {[%clk 0:02:37.7]} 11. O-O
{[%clk 0:02:13.3]} 11... Qxb2 {[%clk 0:02:23.7]} 12. Qd3 {[%clk 0:01:38.5]}
12... Qb6 {[%clk 0:02:21.9]} 13. Ng5 {[%clk 0:01:26.9]} 13... g6 {[%clk
0:02:21.4]} 14. Qh3 {[%clk 0:01:25]} 14... h5 {[%clk 0:02:20.3]} 15. Bxh5 {[%clk
0:01:18.5]} 15... Qxd4 {[%clk 0:02:19.8]} 16. Bxg6 {[%clk 0:01:14.7]} 16... Qh8
{[%clk 0:02:05.8]} 17. Bh7+ {[%clk 0:00:50.1]} 17... Kg7 {[%clk 0:02:03.6]} 18.
Rae1 {[%clk 0:00:49]} 18... f6 {[%clk 0:01:58.6]} 19. Qh5 {[%clk 0:00:47]} 19...
fxg5 {[%clk 0:01:01.7]} 20. Qg6# {[%clk 0:00:45.3]} 1-0

[Event "*** SCC Grand Prix: Titled Tuesday Blitz"]
[Site "Chess.com"]
[Date "2020.09.08"]
[Round "5"]
[White "MustafayevFarid2004"]
[Black "MikaelyanArman"]
[Result "0-1"]
[WhiteElo "2516"]
[BlackElo "2745"]
[TimeControl "180+1"]
[EndTime "10:54:35 PDT"]
[Termination "MikaelyanArman won by resignation"]

1. d4 {[%clk 0:03:00.9]} 1... d5 {[%clk 0:02:58]} 2. c4 {[%clk 0:02:59.4]} 2...
c6 {[%clk 0:02:57.1]} 3. Nf3 {[%clk 0:02:57.1]} 3... Nf6 {[%clk 0:02:56.9]} 4.
g3 {[%clk 0:02:57.4]} 4... g6 {[%clk 0:02:54.5]} 5. Bg2 {[%clk 0:02:57.6]} 5...
Bg7 {[%clk 0:02:54.9]} 6. cxd5 {[%clk 0:02:56.6]} 6... cxd5 {[%clk 0:02:53.7]}
7. O-O {[%clk 0:02:57.3]} 7... O-O {[%clk 0:02:53.9]} 8. Nc3 {[%clk 0:02:57.4]}
8... e6 {[%clk 0:02:52.1]} 9. Bg5 {[%clk 0:02:55.2]} 9... h6 {[%clk 0:02:44.6]}
10. Bxf6 {[%clk 0:02:52.7]} 10... Bxf6 {[%clk 0:02:45.5]} 11. Rc1 {[%clk
0:02:50.2]} 11... Nc6 {[%clk 0:02:45.2]} 12. e3 {[%clk 0:02:42.7]} 12... Bd7
{[%clk 0:02:45.1]} 13. b3 {[%clk 0:02:32.3]} 13... Rc8 {[%clk 0:02:45.1]} 14.
Qd2 {[%clk 0:02:26.9]} 14... Qa5 {[%clk 0:02:36]} 15. Ne1 {[%clk 0:02:17]} 15...
Be7 {[%clk 0:02:23.8]} 16. Nd3 {[%clk 0:02:14.5]} 16... Ba3 {[%clk 0:02:22.4]}
17. Rc2 {[%clk 0:01:49.9]} 17... Nb4 {[%clk 0:02:15.9]} 18. Nxb4 {[%clk
0:01:38.1]} 18... Bxb4 {[%clk 0:02:16.8]} 19. Rfc1 {[%clk 0:01:35.4]} 19... Rc6
{[%clk 0:01:57.8]} 20. Qd3 {[%clk 0:01:30.4]} 20... Ba3 {[%clk 0:01:57.9]} 21.
b4 {[%clk 0:00:43.4]} 21... Qxb4 {[%clk 0:01:48.2]} 22. Rb1 {[%clk 0:00:34.2]}
22... Qc4 {[%clk 0:01:48.1]} 23. Qd1 {[%clk 0:00:26]} 23... Qa6 {[%clk
0:01:29.7]} 24. Nb5 {[%clk 0:00:25.7]} 24... Rxc2 {[%clk 0:01:26.8]} 25. Qxc2
{[%clk 0:00:26.6]} 25... Bxb5 {[%clk 0:01:26.5]} 0-1

[Event "*** SCC Grand Prix: Titled Tuesday Blitz"]
[Site "Chess.com"]
[Date "2020.09.08"]
[Round "5"]
[White "Jungle_Jaguar"]
[Black "JoliyRoger"]
[Result "0-1"]
[WhiteElo "2670"]
[BlackElo "2419"]
[TimeControl "180+1"]
[EndTime "10:54:35 PDT"]
[Termination "JoliyRoger won by checkmate"]

1. e4 {[%clk 0:03:00.9]} 1... c6 {[%clk 0:02:56.6]} 2. d4 {[%clk 0:03:00.2]}
2... d5 {[%clk 0:02:55.2]} 3. e5 {[%clk 0:03:00.3]} 3... Bf5 {[%clk 0:02:54.8]}
4. h4 {[%clk 0:03:00.3]} 4... Qb6 {[%clk 0:02:54.2]} 5. g4 {[%clk 0:02:59.7]}
5... Bd7 {[%clk 0:02:53.6]} 6. Nc3 {[%clk 0:02:58]} 6... e6 {[%clk 0:02:54.1]}
7. f4 {[%clk 0:02:50.1]} 7... c5 {[%clk 0:02:52.7]} 8. Nf3 {[%clk 0:02:50.5]}
8... h5 {[%clk 0:02:47.3]} 9. gxh5 {[%clk 0:02:46]} 9... Nh6 {[%clk 0:02:46.4]}
10. Bh3 {[%clk 0:02:41]} 10... Nc6 {[%clk 0:02:39.5]} 11. Ne2 {[%clk 0:02:24.3]}
11... cxd4 {[%clk 0:02:31]} 12. Nfxd4 {[%clk 0:02:17]} 12... Nxd4 {[%clk
0:02:23.5]} 13. Nxd4 {[%clk 0:02:12]} 13... Be7 {[%clk 0:02:23.7]} 14. O-O
{[%clk 0:00:56.4]} 14... Bxh4 {[%clk 0:01:39.9]} 15. c3 {[%clk 0:00:55.1]} 15...
Be7 {[%clk 0:01:31.1]} 16. Qe2 {[%clk 0:00:38.3]} 16... Nf5 {[%clk 0:01:30.3]}
17. Bxf5 {[%clk 0:00:36.6]} 17... exf5 {[%clk 0:01:30.7]} 18. Be3 {[%clk
0:00:36.8]} 18... Qh6 {[%clk 0:01:23.3]} 19. Qg2 {[%clk 0:00:23.1]} 19... Qxh5
{[%clk 0:01:16.7]} 20. Qxd5 {[%clk 0:00:22.8]} 20... Qh2# {[%clk 0:01:15.4]} 0-1

[Event "*** SCC Grand Prix: Titled Tuesday Blitz"]
[Site "Chess.com"]
[Date "2020.09.08"]
[Round "5"]
[White "lacafi"]
[Black "PavelChernomordik"]
[Result "0-1"]
[WhiteElo "2159"]
[BlackElo "2348"]
[TimeControl "180+1"]
[EndTime "10:54:37 PDT"]
[Termination "PavelChernomordik won on time"]

1. d4 {[%clk 0:03:00.9]} 1... g6 {[%clk 0:02:59]} 2. Nf3 {[%clk 0:03:00.3]} 2...
Bg7 {[%clk 0:02:59.3]} 3. c4 {[%clk 0:03:00.9]} 3... d6 {[%clk 0:02:58.6]} 4.
Nc3 {[%clk 0:03:01]} 4... Nc6 {[%clk 0:02:58.1]} 5. e4 {[%clk 0:03:00.8]} 5...
Bg4 {[%clk 0:02:54.5]} 6. Be3 {[%clk 0:02:59.5]} 6... Bxf3 {[%clk 0:02:52.9]} 7.
gxf3 {[%clk 0:02:58.3]} 7... e5 {[%clk 0:02:53.3]} 8. d5 {[%clk 0:02:57.9]} 8...
Nd4 {[%clk 0:02:53]} 9. Be2 {[%clk 0:02:55.8]} 9... c5 {[%clk 0:02:51.4]} 10.
Qd2 {[%clk 0:02:34.1]} 10... Nf6 {[%clk 0:02:46.7]} 11. h4 {[%clk 0:02:30.8]}
11... Nh5 {[%clk 0:02:45.1]} 12. O-O-O {[%clk 0:02:20.7]} 12... a6 {[%clk
0:02:39.7]} 13. f4 {[%clk 0:02:19.6]} 13... Nxf4 {[%clk 0:02:38]} 14. Bxf4
{[%clk 0:02:16.3]} 14... exf4 {[%clk 0:02:37.7]} 15. Qxf4 {[%clk 0:02:16.3]}
15... h5 {[%clk 0:02:33.3]} 16. Kb1 {[%clk 0:02:07]} 16... b5 {[%clk 0:02:31]}
17. cxb5 {[%clk 0:01:59.4]} 17... axb5 {[%clk 0:02:25.7]} 18. Nxb5 {[%clk
0:01:56.1]} 18... Be5 {[%clk 0:02:20.3]} 19. Qd2 {[%clk 0:01:39.5]} 19... Nxe2
{[%clk 0:02:12.3]} 20. Qxe2 {[%clk 0:01:39.5]} 20... Qa5 {[%clk 0:02:11.6]} 21.
Qc4 {[%clk 0:00:48.4]} 21... O-O {[%clk 0:02:06.5]} 22. Rh3 {[%clk 0:00:45.8]}
22... Rfb8 {[%clk 0:02:01.1]} 23. Rb3 {[%clk 0:00:30.6]} 23... Qxa2+ {[%clk
0:01:57.3]} 24. Kc2 {[%clk 0:00:31]} 24... Ra4 {[%clk 0:01:50.8]} 25. Qf1 {[%clk
0:00:08.2]} 25... c4 {[%clk 0:01:46.4]} 0-1

[Event "*** SCC Grand Prix: Titled Tuesday Blitz"]
[Site "Chess.com"]
[Date "2020.09.08"]
[Round "5"]
[White "HouseOfDurin"]
[Black "indfraeng"]
[Result "0-1"]
[WhiteElo "2116"]
[BlackElo "2336"]
[TimeControl "180+1"]
[EndTime "10:54:41 PDT"]
[Termination "indfraeng won by resignation"]

1. d4 {[%clk 0:03:00.9]} 1... d5 {[%clk 0:02:59.8]} 2. Bg5 {[%clk 0:03:01.4]}
2... c5 {[%clk 0:02:50.3]} 3. c3 {[%clk 0:03:00.3]} 3... Nc6 {[%clk 0:02:49.3]}
4. e3 {[%clk 0:02:58.1]} 4... f6 {[%clk 0:02:48.2]} 5. Bh4 {[%clk 0:02:57.4]}
5... Be6 {[%clk 0:02:28.5]} 6. Bb5 {[%clk 0:02:47.4]} 6... Bf7 {[%clk
0:02:22.9]} 7. Bxc6+ {[%clk 0:02:44.2]} 7... bxc6 {[%clk 0:02:22.7]} 8. dxc5
{[%clk 0:02:44.8]} 8... e5 {[%clk 0:02:21.5]} 9. b4 {[%clk 0:02:44.6]} 9... Nh6
{[%clk 0:02:17.9]} 10. Nf3 {[%clk 0:02:43.3]} 10... Nf5 {[%clk 0:02:17.3]} 11.
Bg3 {[%clk 0:02:28.1]} 11... Bh5 {[%clk 0:02:16.2]} 12. Qa4 {[%clk 0:02:22.1]}
12... Qd7 {[%clk 0:02:13.8]} 13. Nbd2 {[%clk 0:02:19.9]} 13... Be7 {[%clk
0:02:09.9]} 14. Bxe5 {[%clk 0:02:05.6]} 14... fxe5 {[%clk 0:01:58.6]} 15. Nxe5
{[%clk 0:02:06.5]} 15... Qc7 {[%clk 0:01:58]} 16. Nxc6 {[%clk 0:01:01]} 16...
O-O {[%clk 0:01:56.8]} 17. g4 {[%clk 0:00:34.9]} 17... Bxg4 {[%clk 0:01:43.6]}
18. Nxe7+ {[%clk 0:00:28]} 18... Qxe7 {[%clk 0:01:39]} 19. Rg1 {[%clk
0:00:27.2]} 19... Nxe3 {[%clk 0:01:35.4]} 20. Rxg4 {[%clk 0:00:11.8]} 20...
Nxg4+ {[%clk 0:01:34.1]} 21. Kd1 {[%clk 0:00:12.2]} 21... Rxf2 {[%clk
0:01:27.2]} 22. Qc6 {[%clk 0:00:11.5]} 22... Qe2+ {[%clk 0:01:26.1]} 0-1